Cogmind - Beta 10.2 @@@ ROGUE MODE // 2021.04.07 @ 04:02:44 Player: thingamajigger Result: Destroyed self with Mini Grenade Launcher Performance ------------- Evolutions (0) 0 Regions Visited (2) 400 Robots Destroyed (18) 90 Value Destroyed (383) 383 Prototype IDs (0) 0 Alien Tech Used (0) 0 Bonus (0) 0 TOTAL SCORE: 873 Bonus ------- None Cogmind --------- Core Integrity 0/250 Matter 93/300 Energy 85/100 System Corruption 1% Temperature Cool (0) Movement Rolling (90) Location -10/Mines Parts ------- > --- POWER (1) -------- (None) > --- PROPULSION (2) --- Armored Wheel Armored Wheel > --- UTILITY (2) ------ Large Storage Unit Signal Interpreter > --- WEAPON (2) ------- Mini Grenade Launcher > --- INVENTORY (10) --- Improved Targeting Computer Improved Targeting Computer Peak State ------------ > --- POWER ------------ Light Ion Engine > --- PROPULSION ------- Armored Wheel Armored Wheel > --- UTILITY ---------- Small Storage Unit Signal Interpreter > --- WEAPON ----------- EM Pulse Gun Assault Rifle > --- INVENTORY -------- Armored Wheel Armored Wheel Improved Targeting Computer Improved Targeting Computer Small Laser Grenade Launcher [Rating: 10] Favorites ----------- Power Light Ion Engine Engine Light Ion Engine Propulsion Armored Wheel Wheel Armored Wheel Utility Signal Interpreter Storage Large Storage Unit Processor Signal Interpreter Weapon Assault Rifle Energy Gun EM Pulse Gun Ballistic Gun Assault Rifle Ballistic Cannon Light Cannon Launcher Grenade Launcher Build | -11 -10 -10 ------- Run | Scr Mat Min Slots Evolved . | . . . Power . | . . . Propulsion . | . . . Utility . | . . . Weapon . | . . . Parts Attached 23 | 7 12 4 Power 2 | 1 1 . Engine 2 | 1 1 . Core . | . . . Reactor . | . . . Propulsion 8 | 2 4 2 Treads . | . . . Leg . | . . . Wheel 8 | 2 4 2 Hover . | . . . Flight . | . . . Utility 3 | 1 2 . Device . | . . . Storage 2 | 1 1 . Processor 1 | . 1 . Hackware . | . . . Protection . | . . . Artifact . | . . . Weapon 10 | 3 5 2 Energy Gun 3 | 2 1 . Energy Cannon . | . . . Ballistic Gun 4 | 1 3 . Ballistic Cannon 1 | . . 1 Launcher 2 | . 1 1 Special Weapon . | . . . Impact Weapon . | . . . Slashing Weapon . | . . . Piercing Weapon . | . . . Special Melee Weapon . | . . . Unidentified Prototypes . | . . . Parts Lost 9 | . 3 6 Power 2 | . 1 1 Propulsion 2 | . . 2 Utility . | . . . Weapon 5 | . 2 3 Highest Loss Streak 2 | . 2 2 Average Slot Usage (%) 88 | . 89 88 Engine 10 | . 7 12 Wheel 23 | . 27 20 Storage 14 | . 14 14 Processor 13 | . 13 14 Energy Gun 7 | . 6 7 Ballistic Gun 13 | . 14 11 Ballistic Cannon 3 | . . 6 Launcher 2 | . 4 . Naked Turns . | . . . Heaviest Build 24 | 11 23 24 Greatest Support 26 | 26 26 24 Greatest Overweight (x) 7 | 3 3 7 Average Overweight (x) . | . . . Largest Inventory Capacity 10 | 6 10 10 Average Capacity 8 | 5 8 10 Most Carried 6 | 1 6 5 Average Carried 4 | . 4 4 Final Capacity 10 | 6 10 10 Final Carried 4 | 1 4 2 Class Distribution -------------------- 100% | Mutant Dominant Class ---------------- Mutant | -10/Materials Mutant | -10/Mines Resources | -11 -10 -10 ----------- Run | Scr Mat Min Matter Collected 493 | 184 123 186 Remotely . | . . . Salvage Created 280 | . 227 53 Parts 39 | . 37 2 Haulers Intercepted . | . . . Recyclers Shooed . | . . . Parts Field Recycled . | . . . Retrieved Matter . | . . . Parts Self-Destructed . | . . . Prevented . | . . . Kills | -11 -10 -10 ------- Run | Scr Mat Min Combat Hostiles Destroyed 22 | . 13 9 Guns 3 | . 1 2 Cannons 6 | . . 6 AOE 13 | . 12 1 Classes Destroyed 6 | . 5 1 Tunneler 2 | . 1 1 Operator 1 | . 1 . Watcher 2 | . 2 . Swarmer 6 | . 6 . Grunt 7 | . 7 . Assembled 9 | . . 9 Best Kill Streak 10 | . 10 4 Combat Bots Only 8 | . 8 4 Max Kills in Single Turn 3 | . 3 1 Gunslinging . | . . . Exploded 3 | . 3 1 Melee . | . . . Uniques/NPCs Destroyed . | . . . Combat | -11 -10 -10 -------- Run | Scr Mat Min Damage Taken 1031 | . 515 516 Core 250 | . 130 120 Absorbed by Shields . | . . . Core Remaining (%) 100 | 100 . . Volleys Fired 57 | . 26 31 Largest 2 | . 2 2 Hottest 60 | . 60 60 Shots Fired 61 | . 26 35 Gun 16 | . 10 6 Cannon 28 | . . 28 Launcher 17 | . 16 1 Special . | . . . Kinetic 40 | . 8 32 Thermal . | . . . Explosive 17 | . 16 1 Electromagnetic 4 | . 2 2 Robot Hit Streak 5 | . 5 5 Robot Miss Streak 3 | . 2 3 Penetration Max . | . . . Secondary Targets . | . . . Shots Hit Robots 37 | . 15 22 Core Hits 40 | . 29 11 Critical Hits 2 | . 1 1 Critical Kills 1 | . . 1 Critical Parts Destroyed 1 | . 1 . Melee Attacks . | . . . Impact . | . . . Slashing . | . . . Piercing . | . . . Sneak Attacks . | . . . Combat Hostiles . | . . . Follow-up Attacks . | . . . Damage Inflicted 1590 | . 1113 477 Guns 150 | . 100 50 Cannons 298 | . . 298 Explosions 1138 | . 1009 129 Melee . | . . . Ramming 4 | . 4 . Kinetic 423 | . 88 335 Thermal 41 | . . 41 Explosive 1097 | . 1009 88 Electromagnetic 25 | . 12 13 Impact . | . . . Slashing . | . . . Piercing . | . . . Highest Corruption 1 | . 1 1 Average Corruption 1 | . 1 1 Corruption Purged . | . . . Effects 6 | . 3 3 Message Errors 1 | . . 1 Energy Discharges 1 | . 1 . Targeting Errors 2 | . . 2 Weapon Failures 2 | . 2 . Overload Shots . | . . . Overflow Damage 65 | . . 65 Projectiles 12 | . . 12 Explosions 53 | . . 53 Melee . | . . . Knockbacks 4 | . . 4 Impact . | . . . Kinetic 4 | . . 4 Secondary . | . . . Self-Inflicted Damage 131 | . 65 66 Shots 6 | . 4 2 Rammed 1 | . 1 . Targets Rammed 1 | . 1 . Kicked . | . . . Crushed . | . . . Highest Temperature 13 | . 13 12 Average Temperature 7 | . 4 9 Received Heat Transfer 378 | . 198 180 Siege Activations . | . . . Robots Corrupted . | . . . Combat Hostiles . | . . . Parts Fried . | . . . Impact Corruptions . | . . . Robots Melted . | . . . Combat Hostiles . | . . . Parts Melted . | . . . Heat Transferred 50 | . . 50 Parts Sabotaged . | . . . Parts Stolen . | . . . Parts Stripped . | . . . Power Chain Reactions 1 | . . 1 Missiles Intercepted . | . . . Alert | -11 -10 -10 ------- Run | Scr Mat Min Peak Influence 288 | . 288 17 Initial 12 | . . 12 Average 58 | . 119 8 Maximum Alert Level 1 | . 1 . Low Security (%) 83 | 100 62 100 Level 1 16 | . 37 . Level 2 . | . . . Level 3 . | . . . Level 4 . | . . . Level 5 . | . . . High Security . | . . . Max Security . | . . . Squads Dispatched 1 | . 1 . Investigation . | . . . Extermination . | . . . Reinforcement 1 | . 1 . Assault . | . . . Garrison . | . . . Intercept . | . . . Construction Impeded . | . . . Haulers Reinforced . | . . . Stealth | -11 -10 -10 --------- Run | Scr Mat Min Distress Signals 1 | . 1 . Communications Jammed . | . . . Distress Signals . | . . . Times Spotted 42 | . 17 25 Peak Tracking Total 14 | . 9 14 Tactical Retreats 4 | . . 4 Traps | -11 -10 -10 ------- Run | Scr Mat Min Traps Triggered 3 | . 3 . Indirectly . | . . . Trap Hack Attempts . | . . . Triggered . | . . . Disarmed . | . . . Reprogrammed . | . . . Reused . | . . . Traps Extracted . | . . . Installed . | . . . Triggered . | . . . Machines | -11 -10 -10 ---------- Run | Scr Mat Min Machines Disabled 1 | . 1 . Max in Single Turn 1 | . 1 . Machines Sabotaged . | . . . Garrisons Compromised . | . . . Overloaded Fab Kills . | . . . Fab Network Shutdowns . | . . . Hacking | -11 -10 -10 --------- Run | Scr Mat Min Machines Accessed 5 | . 5 . Terminals 5 | . 5 . Fabricators . | . . . Repair Stations . | . . . Recycling Units . | . . . Scanalyzers . | . . . Garrison Access . | . . . Total Hacks 14 | . 14 . Successful 7 | . 7 . Failed 7 | . 7 . Catastrophic 1 | . 1 . Database Lockouts . | . . . Manual 9 | . 9 . Terminals 14 | . 14 . Fabricators . | . . . Repair Stations . | . . . Recycling Units . | . . . Scanalyzers . | . . . Garrison Access . | . . . Terminal Hacks 5 | . 5 . Branch Access Points 1 | . 1 . Terminal Index 1 | . 1 . Alert Level 2 | . 2 . Unreport Threat 1 | . 1 . Fabricator Hacks . | . . . Repair Station Hacks . | . . . Recycling Unit Hacks . | . . . Scanalyzer . | . . . Garrison Access Hacks . | . . . Unauthorized Hacks 2 | . 2 . Terminals 2 | . 2 . Botnet 2 | . 2 . Fabricators . | . . . Repair Stations . | . . . Recycling Units . | . . . Scanalyzers . | . . . Garrison Access . | . . . Data Cores Recovered . | . . . Used . | . . . Hacking Detections 4 | . 4 . Full Trace Events . | . . . Feedback Events . | . . . Feedback Blocked . | . . . Robot Schematics Acquired . | . . . Robots Built . | . . . Matter . | . . . Time . | . . . Total Robot Build Rating . | . . . Part Schematics Acquired . | . . . Parts Built . | . . . Matter . | . . . Time . | . . . Total Part Build Rating . | . . . Parts Repaired . | . . . Time . | . . . Parts Recycled . | . . . Recycled Matter . | . . . Retrieved Matter . | . . . Retrieved Components . | . . . Parts Scanalyzed . | . . . Part Schematics Acquired . | . . . Parts Damaged . | . . . Bothacking | -11 -10 -10 ------------ Run | Scr Mat Min Used RIF Installer . | . . . Robots Hacked . | . . . Non-combat . | . . . Combat . | . . . Robot Hacks Applied . | . . . Relay Couplers Released . | . . . Robots Rewired . | . . . Allies Hacked . | . . . Hacks Repelled . | . . . Allies | -11 -10 -10 -------- Run | Scr Mat Min Total Allies . | . . . Largest Group . | . . . Highest-Rated Group . | . . . Highest-Rated Ally . | . . . Total Orders . | . . . Ally Attacks . | . . . Total Damage . | . . . Kills . | . . . Allies Corrupted . | . . . Allies Melted . | . . . Intel | -11 -10 -10 ------- Run | Scr Mat Min Robot Analysis Total . | . . . Derelict Logs Recovered 2 | . . 2 Drone Launches . | . . . Drone Recoveries . | . . . Exploration | -11 -10 -10 ------------- Run | Scr Mat Min Turns Passed 1010 | 63 456 491 Spaces Moved 878 | 53 416 409 Core 32 | 25 1 6 Treads . | . . . Legs . | . . . Wheels 846 | 28 415 403 Hover . | . . . Flight . | . . . Fastest Speed 50 | 50 90 90 Average Speed 94 | 98 90 98 Slowest Speed 400 | 200 200 400 Overloaded Moves . | . . . Propulsion Burnouts . | . . . Robots Hopped . | . . . Cave-ins Triggered . | . . . Exploration Rate (%) 55 | 4 68 95 Regions Visited 2 Branch Regions 1 Pre-discovered Areas 1 | . . 1 Known Exits Taken 1 | . 1 . Unknown Exits Taken 1 | 1 . . Scrap Searched 2 | . . 2 Spaces Dug . | . . . Terrain Destroyed 89 | . 79 10 Melee . | . . . Projectile 1 | . . 1 AOE 88 | . 79 9 Terrain Rammed . | . . . Walls Destroyed . | . . . Machines Disabled . | . . . Actions | -11 -10 -10 --------- Run | Scr Mat Min Total 992 | 60 467 465 Wait 21 | . 1 20 Move 876 | 52 415 409 Hop . | . . . Pick Up 7 | 1 5 1 Fast Attach 15 | 6 8 1 Attach 5 | . 2 3 Detach 3 | . 3 . Swap 3 | 1 2 . Drop 4 | . 4 . Fire 57 | . 26 31 Melee . | . . . Ram 1 | . 1 . Kick . | . . . Crush . | . . . Escape Stasis . | . . . Rewire . | . . . Trap . | . . . Miscellaneous . | . . . Route ------- -11/Scrapyard -10/Materials (discovered 3 exits: *Mat x2 / *Min) -10/Mines (discovered 1 exit: *Mat) History --------- Turn | Location | Event 7 | -11/Scrapyard | Discovered new exit (range 16) 64 | -11/Scrapyard | Entered Materials 189 | -10/Materials | Discovered new exit (range 12) 235 | -10/Materials | Destroyed 8 combat bots 271 | -10/Materials | Discovered new exit (range 12) 282 | -10/Materials | Identified exit to Materials 307 | -10/Materials | Build established: Mutant 377 | -10/Materials | Core integrity fell below 50% 443 | -10/Materials | Identified exit to Mines 520 | -10/Materials | Entered Mines 585 | -10/Mines | Met a Derelict bent on vengeance 610 | -10/Mines | Learned location of Zion (-6) 745 | -10/Mines | Discovered exit to Materials (range 16) 751 | -10/Mines | Learned Materials stockpile data 763 | -10/Mines | Assembled infested the area 999 | -10/Mines | Core integrity fell below 20% 1011 | -10/Mines | Destroyed self with Mini Grenade Launcher Last Messages --------------- 00979_ Lgt. Ion Engine destroyed. 00981_ K-01 Serf collects debris. 00982_ as-91533 knocked back. 00984_ as-91533 suffers critical hit. 00984_ as-91533 destroyed. 00985_ K-01 Serf collects debris. 00988_ as-74446 knocked back. 00989_ K-01 Serf collects debris. 00996_ as-74446 knocked back. 00998_ K-01 Serf collects debris. 00998_ Destroyed Asb. Heavy Rifle. 00998_ R-06 Scavenger collects Welding Torch. 01002_ K-01 Serf collects debris. 01006_ as-27797 knocked back. 01007_ K-01 Serf collects debris. 01007_ Lgt. Cannon destroyed. 01010_ Acquired Mni. Grenade Launcher. 01011_ Destroyed Asb. F-torch. 01011_ Destroyed Asb. Hover Unit. 01011_ as-27797 destroyed. Map ----- +----------------------------------------------------+ | # ## #???????## ###??????????? | | ######## #???????# ##?????????? | | #??## #???????# #?????????? | | ##??# ##???????## ##?????????? | | #???# ###?????????### ##??????????? | | ????# ##?????????????## ##???????????? | | ????## ##???????????????# #????????????? | | ?????## #????????????????## ######???????? | | #?????# #????????????####### #???????? | | #?????# #????????????# ### #### #???????? | | #?????# #???????????## ## #??# #???????? | | #?????# #????????#### # #### ##??????? | | #?????# #????????# #??????? | | #?????# #????????# """" #??????? | | ####??# #????????## """" ##??????? | | #??# #?????????##### """" #???????? | | ## #### #?????????????## !== < ##???????? | | ?# #??????????????##*%= ##????????? | | ?###### #???????????????#!%### ##?????????? | | ??????# #???????????????#=|#?####??????????? | | ??????# #??????????????##%=#???????????????? | | ??????# #??????????????#=!% ??????????????? | | ??????# #??????????????# * #??????????????? | | ??????# #?????????##???#%r ##?????????????? | | ??????# #????????## #### = !#?????????????? | | ?###### #????????# # % @! ###????????????? | | ?# #?????????# =%%%=!#????????????? | | ## #####?????????## %*%!%!!#????????????? | | #?????????????## !*!r*|%#????????????? | | #?#####???##### ==!!#% #????????????? | | ### ##?## %###% #????????????? | | ### k % ##??% #????????????? | | # u## ##????%##????????????? | | ## #######????? #?????????????? | | ?#### #??????????? !?????????????? | | ????## #????????????#?????????????? | | ?????# ##??????????????????????????? | | ?????## ######???????????????????????????? | | ??????#####????????????????????????????????? | | ???????????????????????????????????????????? | | ???????????????????????????????????????????? | | ???????????????????????????????????????????? | | | | | | | | | | | | | | | | | +----------------------------------------------------+ Best States ------------- Heat Dissipation 25 Energy Generation 10 Energy Capacity 125 Matter Stores 214 Matter Capacity 300 Sight Range 16 Terrain Scan Density 10 Evasion (%) 50 Item Schematics ----------------- None Robot Schematics ------------------ None Fabricated ------------ Nothing Alien Tech Used ----------------- None Achievements -------------- None Challenges ------------ None Game ------ Seed MagneticGlidesysSplitter Manual? 0 Play Time 00:10:50 Cumulative 27.9 hours Start 2021.04.06 @ 14:50:39 End 2021.04.07 @ 04:02:44 Sessions 1 Manual Loads 0 Difficulty Rogue Special Mode None Game No. 64 Rogue 61 Adventurer 0 Explorer 3 Win Type - Total 0 Types 0/0/0/0/0/0/0/0/0 Lore% 28 Gallery% 47 Achievement% 30 Wizard Run 0 Options --------- ASCII 0 Keyboard 1 Movement Numpad Keybinds 0 Fullscreen 1 Font 18/SmallcapsGlow Map View 76x50 Tactical HUD 1 Map Filters NONE Filters NONE Steam 1 RUN: 1cb4d859-d4e1-43ed-a930-651981cd55b0